[Event "*** Titled Tuesday Blitz"]
[Site "Chess.com"]
[Date "2019.06.04"]
[Round "8"]
[White "quesfr"]
[Black "CzechmVIII"]
[Result "1-0"]
[WhiteElo "2167"]
[BlackElo "2080"]
[TimeControl "180+2"]
[EndTime "14:50:22 PDT"]
[Termination "quesfr won by resignation"]

1. e4 {[%clk 0:03:01.9]} 1... c5 {[%clk 0:03:00.8]} 2. c3 {[%clk 0:03:02.4]}
2... d5 {[%clk 0:03:01.4]} 3. exd5 {[%clk 0:03:04.3]} 3... Nf6 {[%clk
0:03:02.5]} 4. Bb5+ {[%clk 0:02:57.4]} 4... Nbd7 {[%clk 0:03:03.5]} 5. d4 {[%clk
0:02:36.6]} 5... a6 {[%clk 0:02:49.3]} 6. Be2 {[%clk 0:02:34.7]} 6... Nxd5
{[%clk 0:02:44.1]} 7. Nf3 {[%clk 0:02:33.4]} 7... e6 {[%clk 0:02:36.3]} 8. O-O
{[%clk 0:02:31.9]} 8... Be7 {[%clk 0:02:36.1]} 9. c4 {[%clk 0:02:21.9]} 9... Nc7
{[%clk 0:02:15.5]} 10. Nc3 {[%clk 0:02:20.3]} 10... O-O {[%clk 0:02:10.6]} 11.
Be3 {[%clk 0:01:57.2]} 11... cxd4 {[%clk 0:02:00.7]} 12. Bxd4 {[%clk 0:01:58.1]}
12... Nf6 {[%clk 0:01:58.4]} 13. Ne5 {[%clk 0:01:55.4]} 13... Qd6 {[%clk
0:01:10]} 14. Qd2 {[%clk 0:01:36.2]} 14... Rd8 {[%clk 0:01:01.8]} 15. Rad1
{[%clk 0:01:37.2]} 15... b5 {[%clk 0:00:49.6]} 16. c5 {[%clk 0:01:31.6]} 16...
Qxe5 {[%clk 0:00:30]} 17. Bxe5 {[%clk 0:01:29]} 17... Rxd2 {[%clk 0:00:30.9]}
18. Rxd2 {[%clk 0:01:30.2]} 18... Ncd5 {[%clk 0:00:28.5]} 19. Nxd5 {[%clk
0:01:26.2]} 19... Nxd5 {[%clk 0:00:29.5]} 20. Bd6 {[%clk 0:01:09.2]} 20... Bf6
{[%clk 0:00:30]} 21. Bf3 {[%clk 0:01:10.3]} 21... Bb7 {[%clk 0:00:30]} 22. a3
{[%clk 0:01:00.1]} 22... Bc6 {[%clk 0:00:20.9]} 23. Rfd1 {[%clk 0:00:58.7]}
23... g6 {[%clk 0:00:19.3]} 24. Bxd5 {[%clk 0:00:53.9]} 24... Bxd5 {[%clk
0:00:19.9]} 25. b4 {[%clk 0:00:08.1]} 25... Rc8 {[%clk 0:00:20.4]} 26. f4 {[%clk
0:00:07]} 26... h5 {[%clk 0:00:20.2]} 27. Rxd5 {[%clk 0:00:07.7]} 27... exd5
{[%clk 0:00:20.9]} 28. Rxd5 {[%clk 0:00:08.6]} 28... Rc6 {[%clk 0:00:21.5]} 29.
Kf2 {[%clk 0:00:08.5]} 29... Kg7 {[%clk 0:00:21.9]} 30. Kf3 {[%clk 0:00:09.1]}
30... Bb2 {[%clk 0:00:22.7]} 31. Rd3 {[%clk 0:00:10]} 31... Bf6 {[%clk
0:00:22.3]} 32. Ke4 {[%clk 0:00:11]} 32... Rc8 {[%clk 0:00:22.9]} 33. Kd5 {[%clk
0:00:12.1]} 33... Bd8 {[%clk 0:00:20.4]} 34. Re3 {[%clk 0:00:11.9]} 34... Bc7
{[%clk 0:00:20.9]} 35. Bxc7 {[%clk 0:00:11.4]} 35... Rxc7 {[%clk 0:00:21.9]} 36.
c6 {[%clk 0:00:12.6]} 36... Kf6 {[%clk 0:00:20.8]} 37. Re8 {[%clk 0:00:12.8]}
37... Kf5 {[%clk 0:00:20.3]} 38. Kd6 {[%clk 0:00:12.7]} 38... Ra7 {[%clk
0:00:20.6]} 39. c7 {[%clk 0:00:12.2]} 39... Rxc7 {[%clk 0:00:21.7]} 40. Kxc7
{[%clk 0:00:13.4]} 40... Kxf4 {[%clk 0:00:23.5]} 41. Kb6 {[%clk 0:00:13.6]} 1-0

[Event "*** Titled Tuesday Blitz"]
[Site "Chess.com"]
[Date "2019.06.04"]
[Round "8"]
[White "Manukyan_Artak"]
[Black "Poghosyan_Suren"]
[Result "0-1"]
[WhiteElo "2407"]
[BlackElo "2557"]
[TimeControl "180+2"]
[EndTime "14:50:31 PDT"]
[Termination "Poghosyan_Suren won by resignation"]

1. e4 {[%clk 0:03:01.9]} 1... e6 {[%clk 0:02:59.5]} 2. d4 {[%clk 0:03:03]} 2...
d5 {[%clk 0:03:01.1]} 3. e5 {[%clk 0:03:04.9]} 3... c5 {[%clk 0:03:02.6]} 4. c3
{[%clk 0:03:06.8]} 4... Nc6 {[%clk 0:03:04]} 5. Nf3 {[%clk 0:03:08.7]} 5... Nh6
{[%clk 0:03:05.1]} 6. a3 {[%clk 0:03:09.7]} 6... cxd4 {[%clk 0:02:58.6]} 7. cxd4
{[%clk 0:03:10.2]} 7... Nf5 {[%clk 0:02:59.9]} 8. Nc3 {[%clk 0:03:05.9]} 8...
Bd7 {[%clk 0:02:58.2]} 9. b4 {[%clk 0:03:00.2]} 9... Rc8 {[%clk 0:02:58.2]} 10.
Bb2 {[%clk 0:03:00.6]} 10... Nh4 {[%clk 0:02:56.9]} 11. Nb5 {[%clk 0:02:13.9]}
11... a6 {[%clk 0:02:49.1]} 12. Nd6+ {[%clk 0:02:10.1]} 12... Bxd6 {[%clk
0:02:49.1]} 13. exd6 {[%clk 0:02:12]} 13... Nf5 {[%clk 0:02:36.3]} 14. Bd3
{[%clk 0:02:10.4]} 14... Nxd6 {[%clk 0:02:34.5]} 15. O-O {[%clk 0:02:10.8]}
15... Nc4 {[%clk 0:02:28.4]} 16. Bc1 {[%clk 0:02:11]} 16... Ne7 {[%clk
0:02:22.7]} 17. Bg5 {[%clk 0:02:01.6]} 17... f6 {[%clk 0:02:19.6]} 18. Bf4
{[%clk 0:01:55.5]} 18... Ng6 {[%clk 0:02:17.1]} 19. Bg3 {[%clk 0:01:54.9]} 19...
Nb2 {[%clk 0:02:03.3]} 20. Bxg6+ {[%clk 0:01:52.5]} 20... hxg6 {[%clk
0:02:04.6]} 21. Qb1 {[%clk 0:01:52.1]} 21... Nc4 {[%clk 0:01:51.2]} 22. Qxg6+
{[%clk 0:01:52.5]} 22... Kf8 {[%clk 0:01:52.9]} 23. h4 {[%clk 0:01:35.8]} 23...
Qe8 {[%clk 0:01:40.3]} 24. Qd3 {[%clk 0:01:22.6]} 24... Qh5 {[%clk 0:01:34.6]}
25. Rfc1 {[%clk 0:01:21.9]} 25... Kf7 {[%clk 0:01:33.2]} 26. a4 {[%clk
0:01:10.8]} 26... g6 {[%clk 0:01:21.2]} 27. Qb3 {[%clk 0:01:05.2]} 27... g5
{[%clk 0:01:18]} 28. b5 {[%clk 0:01:03.4]} 28... gxh4 {[%clk 0:01:14]} 29. Nxh4
{[%clk 0:01:04]} 29... a5 {[%clk 0:01:10.8]} 30. Qf3 {[%clk 0:00:45.2]} 30...
Rcg8 {[%clk 0:00:56.1]} 31. Qxh5+ {[%clk 0:00:43.7]} 31... Rxh5 {[%clk
0:00:56.1]} 32. Nf3 {[%clk 0:00:44.7]} 32... Rc8 {[%clk 0:00:28.5]} 33. Kf1
{[%clk 0:00:40.8]} 33... e5 {[%clk 0:00:28.7]} 34. dxe5 {[%clk 0:00:38.6]} 34...
fxe5 {[%clk 0:00:30.3]} 35. Rxc4 {[%clk 0:00:24.1]} 35... dxc4 {[%clk
0:00:28.5]} 36. Nxe5+ {[%clk 0:00:25.1]} 36... Ke6 {[%clk 0:00:30.4]} 37. Nxd7
{[%clk 0:00:23.8]} 37... Rh1+ {[%clk 0:00:29.6]} 38. Ke2 {[%clk 0:00:24]} 38...
Rxa1 {[%clk 0:00:31.1]} 39. Nb6 {[%clk 0:00:22.2]} 39... Rc5 {[%clk 0:00:28.3]}
40. Ke3 {[%clk 0:00:21.5]} 40... c3 {[%clk 0:00:28.8]} 41. Kd4 {[%clk
0:00:22.8]} 41... c2 {[%clk 0:00:29.9]} 42. Kxc5 {[%clk 0:00:23.3]} 42... c1=Q+
{[%clk 0:00:30.3]} 43. Nc4 {[%clk 0:00:25.2]} 43... Rxa4 {[%clk 0:00:30.1]} 0-1

[Event "*** Titled Tuesday Blitz"]
[Site "Chess.com"]
[Date "2019.06.04"]
[Round "8"]
[White "jk13"]
[Black "MathiasWomacka"]
[Result "1-0"]
[WhiteElo "2545"]
[BlackElo "2296"]
[TimeControl "180+2"]
[EndTime "14:50:37 PDT"]
[Termination "jk13 won by resignation"]

1. e4 {[%clk 0:03:01.9]} 1... c5 {[%clk 0:03:00.2]} 2. c3 {[%clk 0:03:02.7]}
2... d5 {[%clk 0:03:01.2]} 3. exd5 {[%clk 0:03:02.7]} 3... Qxd5 {[%clk
0:03:02.5]} 4. d4 {[%clk 0:03:04.4]} 4... Nf6 {[%clk 0:03:02.3]} 5. Nf3 {[%clk
0:03:06]} 5... e6 {[%clk 0:03:02.7]} 6. Na3 {[%clk 0:03:07.4]} 6... Nc6 {[%clk
0:03:02.7]} 7. Be3 {[%clk 0:03:07.2]} 7... cxd4 {[%clk 0:03:01.6]} 8. Nb5 {[%clk
0:03:08.8]} 8... Qd7 {[%clk 0:03:01.4]} 9. Nbxd4 {[%clk 0:03:09.9]} 9... Nd5
{[%clk 0:03:02.3]} 10. Bc1 {[%clk 0:03:04.7]} 10... Be7 {[%clk 0:02:57.6]} 11.
Bd3 {[%clk 0:03:05.1]} 11... O-O {[%clk 0:02:57.7]} 12. O-O {[%clk 0:03:06.7]}
12... Nxd4 {[%clk 0:02:52.2]} 13. Nxd4 {[%clk 0:03:07.1]} 13... a6 {[%clk
0:02:45.6]} 14. a4 {[%clk 0:02:49.8]} 14... b6 {[%clk 0:02:41.7]} 15. Qf3 {[%clk
0:02:50.2]} 15... Bb7 {[%clk 0:02:42.3]} 16. Qh3 {[%clk 0:02:50.8]} 16... g6
{[%clk 0:02:42.4]} 17. Bh6 {[%clk 0:02:43.7]} 17... Rfd8 {[%clk 0:02:41.5]} 18.
Rfe1 {[%clk 0:02:44.6]} 18... Bf6 {[%clk 0:02:34.9]} 19. Be4 {[%clk 0:02:22.7]}
19... Rac8 {[%clk 0:02:20.5]} 20. Rad1 {[%clk 0:02:23]} 20... Qxa4 {[%clk
0:02:12.3]} 21. Nxe6 {[%clk 0:02:02.7]} 21... Re8 {[%clk 0:00:44]} 22. Bxd5
{[%clk 0:01:42.1]} 22... Bxd5 {[%clk 0:00:44.2]} 23. Nf4 {[%clk 0:01:07.1]}
23... Bb3 {[%clk 0:00:39.7]} 24. Ra1 {[%clk 0:01:02.7]} 24... Qc6 {[%clk
0:00:18.8]} 25. Qg3 {[%clk 0:01:02.2]} 25... a5 {[%clk 0:00:19.1]} 26. h4 {[%clk
0:00:59.1]} 26... a4 {[%clk 0:00:18.3]} 27. h5 {[%clk 0:00:49.2]} 27... Qd6
{[%clk 0:00:19]} 28. hxg6 {[%clk 0:00:44.4]} 28... hxg6 {[%clk 0:00:19]} 29. Qg4
{[%clk 0:00:40]} 29... Be5 {[%clk 0:00:18.5]} 30. Re3 {[%clk 0:00:23.8]} 30...
Bf6 {[%clk 0:00:15]} 31. Rae1 {[%clk 0:00:20.1]} 31... Qc6 {[%clk 0:00:16.1]}
32. Nxg6 {[%clk 0:00:17.5]} 32... fxg6 {[%clk 0:00:14.2]} 33. Qxg6+ {[%clk
0:00:18.5]} 33... Kh8 {[%clk 0:00:13.3]} 34. Rxe8+ {[%clk 0:00:15.8]} 34... Rxe8
{[%clk 0:00:15.2]} 35. Rxe8+ {[%clk 0:00:16]} 35... Qxe8 {[%clk 0:00:12.9]} 36.
Qxe8+ {[%clk 0:00:17.9]} 36... Kh7 {[%clk 0:00:14.8]} 37. Be3 {[%clk 0:00:16.4]}
37... a3 {[%clk 0:00:14.8]} 38. bxa3 {[%clk 0:00:16]} 38... Bxc3 {[%clk
0:00:15.7]} 39. Qe7+ {[%clk 0:00:16]} 39... Kg6 {[%clk 0:00:15.9]} 40. Qd6+
{[%clk 0:00:16.4]} 40... Kf5 {[%clk 0:00:16.9]} 41. Qd3+ {[%clk 0:00:17.4]}
41... Ke6 {[%clk 0:00:17.1]} 42. Qxc3 {[%clk 0:00:19.3]} 42... Bd5 {[%clk
0:00:17.9]} 43. Qb4 {[%clk 0:00:21.2]} 1-0

[Event "*** Titled Tuesday Blitz"]
[Site "Chess.com"]
[Date "2019.06.04"]
[Round "8"]
[White "Rumpel-VK"]
[Black "Korchmar_Vasiliy"]
[Result "0-1"]
[WhiteElo "2571"]
[BlackElo "2796"]
[TimeControl "180+2"]
[EndTime "14:50:39 PDT"]
[Termination "Korchmar_Vasiliy won on time"]

1. d4 {[%clk 0:03:01.9]} 1... d5 {[%clk 0:03:00.8]} 2. Nf3 {[%clk 0:03:01.5]}
2... Nf6 {[%clk 0:03:01.5]} 3. c4 {[%clk 0:03:02.2]} 3... e6 {[%clk 0:03:02.5]}
4. Qc2 {[%clk 0:03:02.9]} 4... dxc4 {[%clk 0:03:00.1]} 5. e4 {[%clk 0:02:59.7]}
5... b5 {[%clk 0:03:00.3]} 6. a4 {[%clk 0:02:59.6]} 6... c6 {[%clk 0:03:01.8]}
7. axb5 {[%clk 0:02:58.6]} 7... cxb5 {[%clk 0:03:03.7]} 8. b3 {[%clk 0:02:58.9]}
8... Bb7 {[%clk 0:02:59.6]} 9. e5 {[%clk 0:02:41.5]} 9... Bb4+ {[%clk
0:02:32.3]} 10. Bd2 {[%clk 0:02:38]} 10... Nd5 {[%clk 0:02:33.6]} 11. bxc4
{[%clk 0:02:35.9]} 11... bxc4 {[%clk 0:02:34.9]} 12. Bxc4 {[%clk 0:02:26.6]}
12... O-O {[%clk 0:02:36]} 13. O-O {[%clk 0:02:25.3]} 13... Nc6 {[%clk
0:02:33.3]} 14. Nc3 {[%clk 0:01:58.4]} 14... Bxc3 {[%clk 0:02:10.6]} 15. Bxc3
{[%clk 0:01:59.1]} 15... Nxc3 {[%clk 0:02:12.5]} 16. Qxc3 {[%clk 0:01:59.1]}
16... Rc8 {[%clk 0:02:14.4]} 17. Qb2 {[%clk 0:01:49.4]} 17... Ba8 {[%clk
0:02:09]} 18. Rfd1 {[%clk 0:01:49.7]} 18... Ne7 {[%clk 0:02:05.7]} 19. Be2
{[%clk 0:01:42.6]} 19... Rc7 {[%clk 0:01:54.8]} 20. Ra4 {[%clk 0:01:32.2]} 20...
Nd5 {[%clk 0:01:46.1]} 21. Ra3 {[%clk 0:01:14.7]} 21... Nf4 {[%clk 0:01:43.4]}
22. Qd2 {[%clk 0:01:10]} 22... Nxe2+ {[%clk 0:01:20.1]} 23. Qxe2 {[%clk
0:01:10.8]} 23... Qe7 {[%clk 0:01:22]} 24. Rda1 {[%clk 0:01:01.1]} 24... Rfc8
{[%clk 0:01:11.6]} 25. h3 {[%clk 0:01:01.6]} 25... h6 {[%clk 0:01:12.4]} 26. Kh2
{[%clk 0:01:01.8]} 26... Qd8 {[%clk 0:00:51.9]} 27. Rxa7 {[%clk 0:00:46.3]}
27... Bxf3 {[%clk 0:00:52.9]} 28. Qxf3 {[%clk 0:00:45.8]} 28... Qxd4 {[%clk
0:00:54]} 29. R7a5 {[%clk 0:00:18.4]} 29... Rc2 {[%clk 0:00:48.3]} 30. R1a2
{[%clk 0:00:10.9]} 30... Rxa2 {[%clk 0:00:46.2]} 31. Rxa2 {[%clk 0:00:11.8]}
31... Qxe5+ {[%clk 0:00:47.9]} 32. Qg3 {[%clk 0:00:13.2]} 32... Qd5 {[%clk
0:00:44]} 33. Rb2 {[%clk 0:00:12.7]} 33... Rc1 {[%clk 0:00:40.8]} 34. Qb8+
{[%clk 0:00:07.5]} 34... Kh7 {[%clk 0:00:42]} 35. Qf4 {[%clk 0:00:08.6]} 35...
Qd1 {[%clk 0:00:26.2]} 36. Qxf7 {[%clk 0:00:04.7]} 36... Qg1+ {[%clk 0:00:26.8]}
37. Kg3 {[%clk 0:00:05.9]} 37... Rc3+ {[%clk 0:00:28.7]} 38. f3 {[%clk
0:00:06.2]} 38... Qe1+ {[%clk 0:00:27.3]} 39. Kh2 {[%clk 0:00:07.2]} 39... Qe5+
{[%clk 0:00:26.1]} 40. f4 {[%clk 0:00:08.5]} 40... Qe1 {[%clk 0:00:25.8]} 41.
Qh5 {[%clk 0:00:03.3]} 41... Qg3+ {[%clk 0:00:25.9]} 0-1

[Event "*** Titled Tuesday Blitz"]
[Site "Chess.com"]
[Date "2019.06.04"]
[Round "8"]
[White "LiamVrolijk"]
[Black "Chebure"]
[Result "1-0"]
[WhiteElo "2764"]
[BlackElo "2802"]
[TimeControl "180+2"]
[EndTime "14:50:42 PDT"]
[Termination "LiamVrolijk won by checkmate"]

1. d4 {[%clk 0:03:01.1]} 1... Nf6 {[%clk 0:03:00.1]} 2. c4 {[%clk 0:03:02.4]}
2... d6 {[%clk 0:03:01.3]} 3. Nc3 {[%clk 0:03:03.5]} 3... Bf5 {[%clk 0:03:02.5]}
4. e3 {[%clk 0:02:57.4]} 4... g6 {[%clk 0:03:01.6]} 5. Nge2 {[%clk 0:02:52.9]}
5... Bg7 {[%clk 0:03:02.6]} 6. Ng3 {[%clk 0:02:54.5]} 6... Bd7 {[%clk
0:03:02.9]} 7. Be2 {[%clk 0:02:54.9]} 7... O-O {[%clk 0:03:04.2]} 8. e4 {[%clk
0:02:56.2]} 8... e5 {[%clk 0:03:03.7]} 9. d5 {[%clk 0:02:57.4]} 9... a5 {[%clk
0:03:04.2]} 10. h4 {[%clk 0:02:53.4]} 10... Na6 {[%clk 0:02:54.5]} 11. h5 {[%clk
0:02:53.8]} 11... Nc5 {[%clk 0:02:55.4]} 12. Be3 {[%clk 0:02:48.1]} 12... a4
{[%clk 0:02:52.3]} 13. Qd2 {[%clk 0:02:48.4]} 13... c6 {[%clk 0:02:51.7]} 14.
Bg5 {[%clk 0:02:39.2]} 14... Qb8 {[%clk 0:02:37.9]} 15. Rd1 {[%clk 0:02:38.7]}
15... cxd5 {[%clk 0:02:33.8]} 16. Bxf6 {[%clk 0:02:33.9]} 16... Bxf6 {[%clk
0:02:34.5]} 17. Nxd5 {[%clk 0:02:35.8]} 17... Qd8 {[%clk 0:02:23]} 18. hxg6
{[%clk 0:02:21.4]} 18... fxg6 {[%clk 0:02:21.9]} 19. Nxf6+ {[%clk 0:02:05.5]}
19... Qxf6 {[%clk 0:02:22.5]} 20. Bf3 {[%clk 0:01:57.1]} 20... Ra6 {[%clk
0:02:17.9]} 21. Ne2 {[%clk 0:01:57.2]} 21... Be6 {[%clk 0:02:11]} 22. Rc1 {[%clk
0:01:54.6]} 22... Rf7 {[%clk 0:01:21.2]} 23. Rc3 {[%clk 0:01:55.4]} 23... b5
{[%clk 0:01:18.4]} 24. cxb5 {[%clk 0:01:52.9]} 24... Rb6 {[%clk 0:01:19.5]} 25.
O-O {[%clk 0:01:46.9]} 25... Bxa2 {[%clk 0:01:16.8]} 26. b4 {[%clk 0:01:30.7]}
26... axb3 {[%clk 0:01:14.8]} 27. Rcc1 {[%clk 0:01:31.8]} 27... Rxb5 {[%clk
0:01:12.4]} 28. Nc3 {[%clk 0:01:32.9]} 28... Rb8 {[%clk 0:01:06.9]} 29. Nxa2
{[%clk 0:01:32.2]} 29... bxa2 {[%clk 0:01:05.8]} 30. Qxa2 {[%clk 0:01:33.6]}
30... Kg7 {[%clk 0:01:04.2]} 31. Rfd1 {[%clk 0:01:34.7]} 31... Rbb7 {[%clk
0:00:59]} 32. Qd5 {[%clk 0:01:34.9]} 32... Rbd7 {[%clk 0:00:54.7]} 33. Rc2
{[%clk 0:01:35.4]} 33... h5 {[%clk 0:00:51.2]} 34. Qc6 {[%clk 0:01:27.6]} 34...
Qe7 {[%clk 0:00:42.4]} 35. Be2 {[%clk 0:01:25.8]} 35... Rc7 {[%clk 0:00:21.6]}
36. Qd5 {[%clk 0:01:18.9]} 36... Rf6 {[%clk 0:00:20.2]} 37. Bf1 {[%clk
0:01:16.9]} 37... Ne6 {[%clk 0:00:15.5]} 38. Rxc7 {[%clk 0:01:14.6]} 38... Nxc7
{[%clk 0:00:17.4]} 39. Qb7 {[%clk 0:01:16]} 39... Qf7 {[%clk 0:00:12.9]} 40. Qb6
{[%clk 0:01:09.1]} 40... Qe7 {[%clk 0:00:08.8]} 41. Rc1 {[%clk 0:01:05.6]} 41...
Ne6 {[%clk 0:00:08.5]} 42. Rc8 {[%clk 0:01:06.1]} 42... Kh6 {[%clk 0:00:06]} 43.
Rh8+ {[%clk 0:01:03.6]} 43... Kg7 {[%clk 0:00:06.1]} 44. Rb8 {[%clk 0:01:04.6]}
44... Kh6 {[%clk 0:00:03.6]} 45. Rb7 {[%clk 0:01:06.1]} 45... Qd8 {[%clk
0:00:03.4]} 46. Qa7 {[%clk 0:01:08]} 46... Nf8 {[%clk 0:00:04.1]} 47. Qe3+
{[%clk 0:01:08.4]} 47... g5 {[%clk 0:00:04.3]} 48. Qb3 {[%clk 0:01:10]} 48...
Kg6 {[%clk 0:00:05.4]} 49. Qg8+ {[%clk 0:01:11]} 49... Kh6 {[%clk 0:00:06.4]}
50. Qg7# {[%clk 0:01:12.4]} 1-0

[Event "*** Titled Tuesday Blitz"]
[Site "Chess.com"]
[Date "2019.06.04"]
[Round "8"]
[White "SaraciNderim"]
[Black "Ambitiousresolutions"]
[Result "1-0"]
[WhiteElo "2866"]
[BlackElo "2611"]
[TimeControl "180+2"]
[EndTime "14:50:58 PDT"]
[Termination "SaraciNderim won by checkmate"]

1. b3 {[%clk 0:03:01.9]} 1... e5 {[%clk 0:02:57.8]} 2. Bb2 {[%clk 0:03:02.7]}
2... d6 {[%clk 0:02:58.8]} 3. e3 {[%clk 0:03:02.8]} 3... Nf6 {[%clk 0:02:59.3]}
4. c4 {[%clk 0:03:04.2]} 4... Be7 {[%clk 0:03:00.1]} 5. Nc3 {[%clk 0:03:04.8]}
5... O-O {[%clk 0:03:00.7]} 6. Nf3 {[%clk 0:03:06.3]} 6... Re8 {[%clk
0:03:00.8]} 7. d4 {[%clk 0:03:07.3]} 7... exd4 {[%clk 0:02:57.4]} 8. Nxd4 {[%clk
0:03:09.2]} 8... Nc6 {[%clk 0:02:54.8]} 9. Be2 {[%clk 0:03:10]} 9... Nxd4 {[%clk
0:02:52.4]} 10. Qxd4 {[%clk 0:03:11.9]} 10... Be6 {[%clk 0:02:48.4]} 11. O-O
{[%clk 0:03:10.6]} 11... c6 {[%clk 0:02:30.4]} 12. Rfd1 {[%clk 0:03:07.5]} 12...
Qc7 {[%clk 0:02:30.8]} 13. Rac1 {[%clk 0:03:03.4]} 13... Bf8 {[%clk 0:02:21.9]}
14. Bf3 {[%clk 0:03:02.7]} 14... Qb6 {[%clk 0:02:18.5]} 15. Qf4 {[%clk
0:02:57.7]} 15... Qa5 {[%clk 0:02:12.5]} 16. h3 {[%clk 0:02:36.5]} 16... Qe5
{[%clk 0:02:07.6]} 17. Qd4 {[%clk 0:02:10.3]} 17... Qxd4 {[%clk 0:02:06.2]} 18.
Rxd4 {[%clk 0:02:12.2]} 18... g6 {[%clk 0:01:47.9]} 19. Rcd1 {[%clk 0:02:11.2]}
19... Rec8 {[%clk 0:01:34.1]} 20. R4d2 {[%clk 0:01:53.5]} 20... Be7 {[%clk
0:01:33.7]} 21. Ba3 {[%clk 0:01:39.1]} 21... Ne8 {[%clk 0:01:02.9]} 22. Ne4
{[%clk 0:01:26]} 22... Rd8 {[%clk 0:01:01.4]} 23. Nxd6 {[%clk 0:00:46.4]} 23...
Nxd6 {[%clk 0:01:01.5]} 24. Bxd6 {[%clk 0:00:46.6]} 24... Bxd6 {[%clk 0:01:02]}
25. Rxd6 {[%clk 0:00:48.5]} 25... Rxd6 {[%clk 0:01:03.9]} 26. Rxd6 {[%clk
0:00:49.9]} 26... a5 {[%clk 0:01:04.6]} 27. Bg4 {[%clk 0:00:38.9]} 27... Bxg4
{[%clk 0:00:51.9]} 28. hxg4 {[%clk 0:00:40.8]} 28... Ra6 {[%clk 0:00:42.4]} 29.
c5 {[%clk 0:00:30.5]} 29... Kf8 {[%clk 0:00:18]} 30. Rd8+ {[%clk 0:00:13.3]}
30... Ke7 {[%clk 0:00:17.9]} 31. Rb8 {[%clk 0:00:14.7]} 31... Ra7 {[%clk
0:00:18.8]} 32. e4 {[%clk 0:00:15.2]} 32... g5 {[%clk 0:00:18.6]} 33. g3 {[%clk
0:00:15.1]} 33... a4 {[%clk 0:00:18.5]} 34. b4 {[%clk 0:00:15.9]} 34... a3
{[%clk 0:00:19.6]} 35. Kf1 {[%clk 0:00:12.8]} 35... Ke6 {[%clk 0:00:19.2]} 36.
f4 {[%clk 0:00:13.4]} 36... f6 {[%clk 0:00:19.9]} 37. Ke2 {[%clk 0:00:14.3]}
37... Kd7 {[%clk 0:00:20.5]} 38. Kd3 {[%clk 0:00:14.9]} 38... Ke7 {[%clk
0:00:20.9]} 39. Rh8 {[%clk 0:00:13.8]} 39... Ke6 {[%clk 0:00:17.1]} 40. Rxh7
{[%clk 0:00:11.2]} 40... Ra8 {[%clk 0:00:17.8]} 41. f5+ {[%clk 0:00:07]} 41...
Ke5 {[%clk 0:00:16.7]} 42. Re7# {[%clk 0:00:07.9]} 1-0

[Event "*** Titled Tuesday Blitz"]
[Site "Chess.com"]
[Date "2019.06.04"]
[Round "8"]
[White "Shivagami"]
[Black "Vusatiuk_Vladimir"]
[Result "0-1"]
[WhiteElo "2076"]
[BlackElo "2218"]
[TimeControl "180+2"]
[EndTime "14:51:07 PDT"]
[Termination "Vusatiuk_Vladimir won by resignation"]

1. d4 {[%clk 0:03:01.8]} 1... Nf6 {[%clk 0:03:00.2]} 2. Bf4 {[%clk 0:03:00.2]}
2... e6 {[%clk 0:02:42.6]} 3. e3 {[%clk 0:03:00.9]} 3... c5 {[%clk 0:02:40.2]}
4. c3 {[%clk 0:03:00.5]} 4... b6 {[%clk 0:02:41.1]} 5. Nd2 {[%clk 0:03:01]} 5...
Bb7 {[%clk 0:02:42.2]} 6. Ngf3 {[%clk 0:03:00.3]} 6... d6 {[%clk 0:02:43.3]} 7.
Bd3 {[%clk 0:03:00.4]} 7... Nbd7 {[%clk 0:02:44.7]} 8. h3 {[%clk 0:02:59.3]}
8... Be7 {[%clk 0:02:46]} 9. O-O {[%clk 0:02:59.7]} 9... O-O {[%clk 0:02:46.6]}
10. Qe2 {[%clk 0:02:57.2]} 10... Qc7 {[%clk 0:02:45.9]} 11. e4 {[%clk
0:02:49.9]} 11... e5 {[%clk 0:02:44.6]} 12. Bh2 {[%clk 0:02:45]} 12... Rfe8
{[%clk 0:02:35.9]} 13. Rad1 {[%clk 0:02:28.6]} 13... Bf8 {[%clk 0:02:32.6]} 14.
Rfe1 {[%clk 0:02:25.7]} 14... g6 {[%clk 0:02:07.8]} 15. Qf1 {[%clk 0:02:20.1]}
15... Bg7 {[%clk 0:02:07.3]} 16. Nc4 {[%clk 0:02:16.7]} 16... Nh5 {[%clk
0:01:58.7]} 17. Bc2 {[%clk 0:02:05.9]} 17... Nf4 {[%clk 0:01:45.3]} 18. Nxd6
{[%clk 0:01:46.7]} 18... Qxd6 {[%clk 0:01:36.9]} 19. dxe5 {[%clk 0:01:48.1]}
19... Nxh3+ {[%clk 0:01:31.3]} 20. gxh3 {[%clk 0:01:47.7]} 20... Qe7 {[%clk
0:01:31.7]} 21. Ba4 {[%clk 0:01:30.4]} 21... Red8 {[%clk 0:01:26.7]} 22. Bg3
{[%clk 0:01:21.8]} 22... Nxe5 {[%clk 0:01:15]} 23. Nxe5 {[%clk 0:01:17]} 23...
Bxe5 {[%clk 0:01:16.9]} 24. f4 {[%clk 0:01:12.4]} 24... Bf6 {[%clk 0:01:17]} 25.
e5 {[%clk 0:01:02.1]} 25... Bh4 {[%clk 0:01:17.3]} 26. Qf2 {[%clk 0:00:55.9]}
26... Bxg3 {[%clk 0:00:54.6]} 27. Qxg3 {[%clk 0:00:56.9]} 27... Qe6 {[%clk
0:00:56.1]} 28. Bb3 {[%clk 0:00:51.2]} 28... c4 {[%clk 0:00:45.4]} 29. Bc2
{[%clk 0:00:50.4]} 29... Rxd1 {[%clk 0:00:42.9]} 30. Rxd1 {[%clk 0:00:46.2]}
30... Qc6 {[%clk 0:00:43.7]} 31. Kf2 {[%clk 0:00:33.9]} 31... Re8 {[%clk
0:00:44.6]} 32. Rd4 {[%clk 0:00:27.8]} 32... b5 {[%clk 0:00:42.9]} 33. Be4
{[%clk 0:00:27.4]} 33... Qb6 {[%clk 0:00:44]} 34. Bxb7 {[%clk 0:00:27.3]} 34...
Qxb7 {[%clk 0:00:45.9]} 35. Qf3 {[%clk 0:00:28.6]} 35... Qe7 {[%clk 0:00:45.2]}
36. Qc6 {[%clk 0:00:26.8]} 36... Rb8 {[%clk 0:00:37.8]} 37. Qd7 {[%clk
0:00:18.1]} 37... Qh4+ {[%clk 0:00:38.2]} 38. Kg2 {[%clk 0:00:19.4]} 38... Qe1
{[%clk 0:00:37.3]} 39. Rd2 {[%clk 0:00:20.3]} 39... Qe4+ {[%clk 0:00:37.8]} 40.
Kg3 {[%clk 0:00:21.5]} 40... Qe3+ {[%clk 0:00:39]} 41. Kg4 {[%clk 0:00:10.6]}
41... h5+ {[%clk 0:00:38.5]} 42. Kg5 {[%clk 0:00:11.1]} 42... Qg3+ {[%clk
0:00:37]} 0-1